lending/lending_fUSD_20250719
["ID","MTS","AMOUNT","RATE_DAILY","PERIOD"]
[373245894,1752922261989,-480.0,0.00019397,2]
[373245895,1752922262000,-309.01,0.00019397,2]
[373245896,1752922262011,-480.0,0.00019397,2]
[373245897,1752922262020,-480.0,0.00019397,2]
[373245898,1752922262030,-480.0,0.00019397,2]
[373245899,1752922262039,-273.430536,0.00019397,2]
[373245900,1752922262049,-234.961977,0.00019397,2]
[373245901,1752922262059,-480.0,0.00019397,2]
[373245902,1752922262069,-480.0,0.00019397,2]
[373245903,1752922262078,-480.0,0.00019397,2]
[373245904,1752922262089,-480.0,0.00019397,2]
[373245905,1752922262098,-480.0,0.00019397,2]
[373245906,1752922262108,-480.0,0.00019397,2]
[373245907,1752922262118,-422.6937732,0.00019397,2]
[373245908,1752922262127,-380.14,0.00019397,2]
[373245909,1752922262138,-480.0,0.00019397,2]
[373245910,1752922262148,-480.0,0.00019397,2]
[373245911,1752922262158,-571.94,0.00019397,2]
[373245912,1752922262169,-480.0,0.00019397,2]
[373245913,1752922262178,-480.0,0.00019397,2]
[373245914,1752922262188,-430.42386458,0.00019397,2]
[373245915,1752922262198,-480.0,0.00019397,2]
[373245916,1752922262208,-480.0,0.00019397,2]
[373245917,1752922262218,-522.79,0.00019397,2]
[373245918,1752922262227,-480.0,0.00019397,2]
[373245919,1752922262238,-480.0,0.00019397,2]
[373245920,1752922262248,-480.0,0.00019397,2]
[373245921,1752922262258,-480.0,0.00019397,2]
[373245922,1752922262267,-390.60110816,0.00019397,2]
[373245923,1752922262277,-480.0,0.00019397,2]
[373245924,1752922262287,-480.0,0.00019397,2]
[373245925,1752922262297,-423.33115352,0.00019397,2]
[373245926,1752922262306,-480.0,0.00019397,2]
[373245927,1752922262316,-480.0,0.00019397,2]
[373245928,1752922262326,-480.0,0.00019397,2]
[373245929,1752922262336,-480.0,0.00019397,2]
[373245930,1752922262346,-480.0,0.00019397,2]
[373245931,1752922262355,-480.0,0.00019397,2]
[373245932,1752922262365,-480.0,0.00019397,2]
[373245933,1752922262375,-480.0,0.00019397,2]
[373245934,1752922262384,-480.0,0.00019397,2]
[373245935,1752922262394,-480.0,0.00019397,2]
[373245936,1752922262404,-480.0,0.00019397,2]
[373245937,1752922262413,-480.0,0.00019397,2]
[373245938,1752922262423,-460.0,0.00019397,2]
[373245939,1752922262432,-480.0,0.00019397,2]
[373245940,1752922262442,-480.0,0.00019397,2]
[373245941,1752922262452,-480.0,0.00019397,2]
[373245942,1752922262462,-480.0,0.00019397,2]
[373245943,1752922262472,-610.33,0.00019397,2]
[373245944,1752922262482,-480.0,0.00019397,2]
[373245945,1752922262491,-584.27943481,0.00019397,2]
[373245946,1752922262501,-168.25289,0.00019397,2]
[373245947,1752922262510,-420.0,0.00019397,2]
[373245948,1752922262519,-480.0,0.00019397,2]
[373245949,1752922262529,-480.0,0.00019397,2]
[373245950,1752922262539,-158.408904,0.00019397,2]
[373245951,1752922262549,-150.812775,0.00019397,2]
[373245952,1752922262559,-480.0,0.00019397,2]
[373245953,1752922262568,-480.0,0.00019397,2]
[373245954,1752922262577,-480.0,0.00019397,2]
[373245955,1752922262586,-480.0,0.00019397,2]
[373245956,1752922262595,-420.0,0.00019397,2]
[373245957,1752922262605,-480.0,0.00019397,2]
[373245958,1752922262615,-480.0,0.00019397,2]
[373245959,1752922262625,-420.0,0.00019397,2]
[373245960,1752922262637,-480.0,0.00019397,2]
[373245961,1752922262647,-480.0,0.00019397,2]
[373245962,1752922262656,-431.01803625,0.00019397,2]
[373245963,1752922262667,-456.41753548,0.00019397,2]
[373245964,1752922262677,-423.92229107,0.00019397,2]
[373245965,1752922262687,-233.55,0.00019397,2]
[373245966,1752922262696,-480.0,0.00019397,2]
[373245967,1752922262707,-480.0,0.00019397,2]
[373245968,1752922262717,-420.0,0.00019397,2]
[373245969,1752922262726,-605.49,0.00019397,2]
[373245970,1752922262735,-480.0,0.00019397,2]
[373245971,1752922262745,-154.166699,0.00019397,2]
[373245972,1752922262754,-457.84193361,0.00019397,2]
[373245973,1752922262763,-1000.47,0.00019397,2]
[373245974,1752922262773,-206.36,0.00019397,2]
[373245975,1752922262782,-1043.59,0.00019397,2]
[373245976,1752922262791,-480.0,0.00019397,2]
[373245977,1752922262802,-489.05,0.00019397,2]
[373245978,1752922262811,-227.43398347,0.00019397,2]
[373245979,1752922262821,-480.0,0.00019397,2]
[373245980,1752922262830,-604.26,0.00019397,2]
[373245981,1752922262839,-420.0,0.00019397,2]
[373245982,1752922262849,-480.0,0.00019397,2]
[373245983,1752922262858,-480.0,0.00019397,2]
[373245984,1752922262868,-480.0,0.00019397,2]
[373245985,1752922262877,-480.0,0.00019397,2]
[373245986,1752922262887,-467.52698768,0.00019397,2]
[373245987,1752922262897,-480.0,0.00019397,2]
[373245988,1752922262906,-861.59,0.00019397,2]
[373245989,1752922262916,-430.59177161,0.00019397,2]
[373245990,1752922262926,-848.57,0.00019397,2]
[373245991,1752922262936,-480.0,0.00019397,2]
[373245992,1752922262945,-480.0,0.00019397,2]
[373245993,1752922262955,-480.0,0.00019397,2]
[373245994,1752922262964,-425.96755913,0.00019397,2]
[373245995,1752922262973,-480.0,0.00019397,2]
[373245996,1752922262983,-353.94069456,0.00019397,2]
[373245997,1752922262992,-511.8,0.00019397,2]
[373245998,1752922263001,-480.0,0.00019397,2]
[373245999,1752922263011,-432.5342999,0.00019397,2]
[373246000,1752922263020,-480.0,0.00019397,2]
[373246001,1752922263030,-480.0,0.00019397,2]
[373246002,1752922263040,-428.9320052,0.00019397,2]
[373246003,1752922263051,-480.0,0.00019397,2]
[373246004,1752922263061,-300.53006054,0.00019397,2]
[373246005,1752922263071,-687.69,0.00019397,2]
[373246006,1752922263081,-480.0,0.00019397,2]
[373246007,1752922263091,-480.0,0.00019397,2]
[373246008,1752922263101,-429.21314889,0.00019397,2]
[373246009,1752922263110,-480.0,0.00019397,2]
[373246010,1752922263119,-3297.54,0.00019397,2]
[373246011,1752922263129,-480.0,0.00019397,2]
[373246012,1752922263139,-495.02,0.00019397,2]
[373246013,1752922263149,-1455.87,0.00019397,2]
[373246014,1752922263158,-480.0,0.00019397,2]
[373246015,1752922263168,-420.0,0.00019397,2]
[373246016,1752922263178,-480.0,0.00019397,2]
[373246017,1752922263188,-659.75,0.00019397,2]
[373246018,1752922263198,-480.0,0.00019397,2]
[373246019,1752922263208,-480.0,0.00019397,2]
[373246020,1752922263217,-1574.33,0.00019397,2]
[373246021,1752922263227,-480.0,0.00019397,2]
[373246022,1752922263236,-2169.2,0.00019397,2]
[373246023,1752922263246,-3376.92,0.00019397,2]
[373246024,1752922263255,-418.54013712,0.00019397,2]
[373246025,1752922263265,-449.55816712,0.00019397,2]
[373246026,1752922263275,-588.06,0.00019397,2]
[373246027,1752922263284,-480.0,0.00019397,2]
[373246028,1752922263293,-480.0,0.00019397,2]
[373246029,1752922263304,-430.3411655,0.00019397,2]
[373246030,1752922263313,-493.46,0.00019397,2]
[373246031,1752922263323,-576.04,0.00019397,2]
[373246032,1752922263331,-480.0,0.00019397,2]
[373246033,1752922263341,-480.0,0.00019397,2]
[373246034,1752922263351,-743.26,0.00019397,2]
[373246035,1752922263360,-573.85371466,0.00019397,2]
[373246036,1752922263370,-1474.2,0.00019397,2]
[373246037,1752922263380,-480.0,0.00019397,2]
[373246038,1752922263389,-480.0,0.00019397,2]
[373246039,1752922263399,-2172.21,0.00019397,2]
[373246040,1752922263408,-480.0,0.00019397,2]
[373246041,1752922263418,-480.0,0.00019397,2]
[373246042,1752922263428,-480.0,0.00019397,2]
[373246043,1752922263437,-1462.78,0.00019397,2]
[373246044,1752922263447,-513.05,0.00019397,2]
[373246045,1752922263456,-480.0,0.00019397,2]
[373246046,1752922263466,-420.0,0.00019397,2]
[373246047,1752922263476,-480.0,0.00019397,2]
[373246048,1752922263485,-480.0,0.00019397,2]
[373246049,1752922263495,-735.14,0.00019397,2]
[373246050,1752922263505,-787.17,0.00019397,2]
[373246051,1752922263515,-480.0,0.00019397,2]
[373246052,1752922263524,-469.6,0.00019397,2]
[373246053,1752922263534,-1284.12,0.00019397,2]
[373246054,1752922263544,-480.0,0.00019397,2]
[373246055,1752922263554,-480.0,0.00019397,2]
[373246056,1752922263564,-480.0,0.00019397,2]
[373246057,1752922263573,-1107.05,0.00019397,2]
[373246058,1752922263587,-480.0,0.00019397,2]
[373246059,1752922263600,-480.0,0.00019397,2]
[373246060,1752922263616,-2107.73,0.00019397,2]
[373246061,1752922263632,-480.0,0.00019397,2]
[373246062,1752922263643,-480.0,0.00019397,2]
[373246063,1752922263657,-422.69329383,0.00019397,2]
[373246064,1752922263672,-480.0,0.00019397,2]
[373246065,1752922263690,-1478.58,0.00019397,2]
[373246066,1752922263706,-480.0,0.00019397,2]
[373246067,1752922263719,-480.0,0.00019397,2]
[373246068,1752922263731,-480.0,0.00019397,2]
[373246069,1752922263742,-480.0,0.00019397,2]
[373246070,1752922263756,-681.5,0.00019397,2]
[373246071,1752922263770,-424.83002268,0.00019397,2]
[373246072,1752922263784,-423.88286597,0.00019397,2]
[373246073,1752922263798,-2270.49,0.00019397,2]
[373246074,1752922263813,-480.0,0.00019397,2]
[373246075,1752922263827,-480.0,0.00019397,2]
[373246076,1752922263841,-480.0,0.00019397,2]
[373246077,1752922263854,-480.0,0.00019397,2]
[373246078,1752922263868,-538.13,0.00019397,2]
[373246079,1752922263882,-480.0,0.00019397,2]
[373246080,1752922263895,-480.0,0.00019397,2]
[373246081,1752922263908,-1412.35,0.00019397,2]
[373246082,1752922263924,-480.0,0.00019397,2]
[373246083,1752922263940,-480.0,0.00019397,2]
[373246084,1752922263956,-1430.96,0.00019397,2]
[373246085,1752922263971,-480.0,0.00019397,2]
[373246086,1752922263985,-1000.0,0.00019397,2]
[373246087,1752922263996,-480.0,0.00019397,2]
[373246088,1752922264011,-480.0,0.00019397,2]
[373246089,1752922264025,-480.0,0.00019397,2]
[373246090,1752922264041,-427.37908028,0.00019397,2]
[373246091,1752922264052,-1208.93,0.00019397,2]
[373246092,1752922264064,-480.0,0.00019397,2]
[373246093,1752922264075,-480.0,0.00019397,2]
[373246094,1752922264089,-480.0,0.00019397,2]
[373246095,1752922264107,-480.0,0.00019397,2]
[373246096,1752922264119,-548.17,0.00019397,2]
[373246097,1752922264131,-480.0,0.00019397,2]
[373246098,1752922264144,-480.0,0.00019397,2]
[373246099,1752922264156,-420.0,0.00019397,2]
[373246100,1752922264170,-480.0,0.00019397,2]
[373246101,1752922264183,-480.0,0.00019397,2]
[373246102,1752922264196,-3722.95,0.00019397,2]
[373246103,1752922264210,-425.68924238,0.00019397,2]
[373246104,1752922264223,-480.0,0.00019397,2]
[373246105,1752922264237,-648.45,0.00019397,2]
[373246106,1752922264251,-484.42,0.00019397,2]
[373246107,1752922264264,-480.0,0.00019397,2]
[373246108,1752922264276,-643.93,0.00019397,2]
[373246109,1752922264289,-480.0,0.00019397,2]
[373246110,1752922264302,-480.0,0.00019397,2]
[373246111,1752922264315,-519.96,0.00019397,2]
[373246112,1752922264327,-480.0,0.00019397,2]
[373246113,1752922264341,-480.0,0.00019397,2]
[373246114,1752922264353,-480.0,0.00019397,2]
[373246115,1752922264365,-426.90415238,0.00019397,2]
[373246116,1752922264377,-1444.47,0.00019397,2]
[373246117,1752922264389,-480.0,0.00019397,2]
[373246118,1752922264402,-480.0,0.00019397,2]
[373246119,1752922264413,-480.0,0.00019397,2]
[373246120,1752922264425,-716.2,0.00019397,2]
[373246121,1752922264438,-480.0,0.00019397,2]
[373246122,1752922264450,-425.03368017,0.00019397,2]
[373246123,1752922264463,-567.66161959,0.00019397,2]
[373246124,1752922264475,-480.0,0.00019397,2]
[373246125,1752922264487,-480.0,0.00019397,2]
[373246126,1752922264499,-420.0,0.00019397,2]
[373246127,1752922264511,-1010.12,0.00019397,2]
[373246128,1752922264523,-480.0,0.00019397,2]
[373246129,1752922264535,-480.0,0.00019397,2]
[373246130,1752922264548,-422.31728915,0.00019397,2]
[373246131,1752922264559,-1134.71,0.00019397,2]
[373246132,1752922264571,-1001.22,0.00019397,2]
[373246133,1752922264583,-200.17188154,0.00019397,2]
[373246134,1752922264595,-480.0,0.00019397,2]
[373246135,1752922264606,-753.66,0.00019397,2]
[373246136,1752922264618,-469.73,0.00019397,2]
[373246137,1752922264633,-480.0,0.00019397,2]
[373246138,1752922264645,-480.0,0.00019397,2]
[373246139,1752922264657,-421.22638087,0.00019397,2]
[373246140,1752922264670,-1926.46,0.00019397,2]
[373246141,1752922264682,-480.0,0.00019397,2]
[373246142,1752922264694,-440.0,0.00019397,2]
[373246143,1752922264708,-480.0,0.00019397,2]
[373246144,1752922264720,-480.0,0.00019397,2]
[373246145,1752922264732,-480.0,0.00019397,2]
[373246146,1752922264744,-14763.9,0.00019397,2]
[373246147,1752922264755,-341.20867129,0.00019397,2]
[373246148,1752922264767,-387.61884307,0.00019397,2]
[373246149,1752922264779,-480.0,0.00019397,2]
[373246150,1752922264791,-850.67,0.00019397,2]
[373246151,1752922264803,-480.0,0.00019397,2]
[373246152,1752922264815,-480.0,0.00019397,2]
[373246153,1752922264827,-350.86897802,0.00019397,2]
[373246154,1752922264839,-480.0,0.00019397,2]
[373246155,1752922264851,-480.0,0.00019397,2]
[373246156,1752922264862,-480.0,0.00019397,2]
[373246157,1752922264874,-480.0,0.00019397,2]
[373246158,1752922264887,-504.26,0.00019397,2]
[373246159,1752922264899,-480.0,0.00019397,2]
[373246160,1752922264911,-480.0,0.00019397,2]
[373246161,1752922264923,-480.0,0.00019397,2]
[373246162,1752922264934,-480.0,0.00019397,2]
[373246163,1752922264946,-498.51341279,0.00019397,2]
[373246164,1752922264959,-3399.67,0.00019397,2]
[373246165,1752922264971,-584.79,0.00019397,2]
[373246166,1752922264983,-480.0,0.00019397,2]
[373246167,1752922264999,-480.0,0.00019397,2]
[373246168,1752922265013,-2654.42,0.00019397,2]
[373246169,1752922265024,-338.46,0.00019397,2]
[373246170,1752922265036,-480.0,0.00019397,2]
[373246171,1752922265048,-480.0,0.00019397,2]
[373246172,1752922265060,-480.0,0.00019397,2]
[373246173,1752922265071,-603.57,0.00019397,2]
[373246174,1752922265083,-480.0,0.00019397,2]
[373246175,1752922265095,-480.0,0.00019397,2]
[373246176,1752922265109,-425.37859519,0.00019397,2]
[373246177,1752922265121,-480.0,0.00019397,2]
[373246178,1752922265132,-480.0,0.00019397,2]
[373246179,1752922265144,-480.0,0.00019397,2]
[373246180,1752922265156,-480.0,0.00019397,2]
[373246181,1752922265168,-736.01,0.00019397,2]
[373246182,1752922265180,-528.72,0.00019397,2]
[373246183,1752922265192,-480.0,0.00019397,2]
[373246184,1752922265203,-920.96,0.00019397,2]
[373246185,1752922265216,-440.0,0.00019397,2]
[373246186,1752922265228,-480.0,0.00019397,2]
[373246187,1752922265240,-480.0,0.00019397,2]
[373246188,1752922265252,-480.0,0.00019397,2]
[373246189,1752922265263,-420.0,0.00019397,2]
[373246190,1752922265275,-582.63,0.00019397,2]
[373246191,1752922265287,-2078.75,0.00019397,2]
[373246192,1752922265299,-480.0,0.00019397,2]
[373246193,1752922265311,-480.0,0.00019397,2]
[373246194,1752922265323,-480.0,0.00019397,2]
[373246195,1752922265334,-480.0,0.00019397,2]
[373246196,1752922265347,-480.0,0.00019397,2]
[373246197,1752922265359,-420.0,0.00019397,2]
[373246198,1752922265371,-480.0,0.00019397,2]
[373246199,1752922265384,-338.08,0.00019397,2]
[373246200,1752922265395,-480.0,0.00019397,2]
[373246201,1752922265408,-480.0,0.00019397,2]
[373246202,1752922265419,-684.13,0.00019397,2]
[373246203,1752922265431,-480.0,0.00019397,2]
[373246204,1752922265443,-1086.48,0.00019397,2]
[373246205,1752922265457,-480.0,0.00019397,2]
[373246206,1752922265468,-364.03359754,0.00019397,2]
[373246207,1752922265480,-823.27,0.00019397,2]
[373246208,1752922265493,-601.91,0.00019397,2]
[373246209,1752922265505,-480.0,0.00019397,2]
[373246210,1752922265518,-480.0,0.00019397,2]
[373246211,1752922265530,-480.0,0.00019397,2]
[373246212,1752922265542,-420.0,0.00019397,2]
[373246213,1752922265554,-2672.28,0.00019397,2]
[373246214,1752922265565,-420.0,0.00019397,2]
[373246215,1752922265577,-562.16950363,0.00019397,2]
[373246216,1752922265589,-480.0,0.00019397,2]
[373246217,1752922265601,-480.0,0.00019397,2]
[373246218,1752922265612,-513.99,0.00019397,2]
[373246219,1752922265625,-616.88,0.00019397,2]
[373246220,1752922265639,-291.8422208,0.00019397,2]
[373246221,1752922265652,-214.9,0.00019397,2]
[373246222,1752922265663,-428.635541,0.00019397,2]
[373246223,1752922265676,-480.0,0.00019397,2]
[373246224,1752922265688,-423.40523662,0.00019397,2]
[373246225,1752922265699,-1044.3,0.00019397,2]
[373246226,1752922265713,-480.0,0.00019397,2]
[373246227,1752922265724,-480.0,0.00019397,2]
[373246228,1752922265737,-422.58551215,0.00019397,2]
[373246229,1752922265749,-480.0,0.00019397,2]
[373246230,1752922265761,-480.0,0.00019397,2]
[373246231,1752922265774,-574.67,0.00019397,2]
[373246232,1752922265785,-420.0,0.00019397,2]
[373246233,1752922265797,-480.0,0.00019397,2]
[373246234,1752922265810,-427.10654054,0.00019397,2]
[373246235,1752922265821,-434.70837967,0.00019397,2]
[373246236,1752922265833,-813.79,0.00019397,2]
[373246237,1752922265845,-420.33876301,0.00019397,2]
[373246238,1752922265857,-480.0,0.00019397,2]
[373246239,1752922265870,-480.0,0.00019397,2]
[373246240,1752922265884,-480.0,0.00019397,2]
[373246241,1752922265897,-524.91,0.00019397,2]
[373246242,1752922265909,-480.0,0.00019397,2]
[373246243,1752922265921,-480.0,0.00019397,2]
[373246244,1752922265933,-480.0,0.00019397,2]
[373246245,1752922265945,-480.0,0.00019397,2]
[373246246,1752922265959,-3431.57,0.00019397,2]
[373246247,1752922265972,-1310.77,0.00019397,2]
[373246248,1752922265984,-858.48,0.00019397,2]
[373246249,1752922265995,-432.99287944,0.00019397,2]
[373246250,1752922266008,-434.64744985,0.00019397,2]
[373246251,1752922266019,-480.0,0.00019397,2]
[373246252,1752922266031,-420.0,0.00019397,2]
[373246253,1752922266044,-480.0,0.00019397,2]
[373246254,1752922266057,-480.0,0.00019397,2]
[373246255,1752922266070,-580.31,0.00019397,2]
[373246256,1752922266082,-492.77539677,0.00019397,2]
[373246257,1752922266094,-497.93,0.00019397,2]
[373246258,1752922266106,-480.0,0.00019397,2]
[373246259,1752922266119,-480.0,0.00019397,2]
[373246260,1752922266133,-432.07932668,0.00019397,2]
[373246261,1752922266146,-480.0,0.00019397,2]
[373246262,1752922266158,-480.0,0.00019397,2]
[373246263,1752922266170,-480.0,0.00019397,2]
[373246264,1752922266183,-422.55357901,0.00019397,2]
[373246265,1752922266194,-1367.34,0.00019397,2]
[373246266,1752922266203,-480.0,0.00019397,2]
[373246267,1752922266212,-480.0,0.00019397,2]
[373246268,1752922266222,-1524.22,0.00019397,2]
[373246269,1752922266231,-480.0,0.00019397,2]
[373246270,1752922266241,-480.0,0.00019397,2]
[373246271,1752922266251,-480.0,0.00019397,2]
[373246272,1752922266260,-480.0,0.00019397,2]
[373246273,1752922266270,-5259.12,0.00019397,2]
[373246274,1752922266279,-480.0,0.00019397,2]
[373246275,1752922266288,-480.0,0.00019397,2]
[373246276,1752922266297,-480.0,0.00019397,2]
[373246277,1752922266309,-480.0,0.00019397,2]
[373246278,1752922266319,-480.0,0.00019397,2]
[373246279,1752922266328,-480.0,0.00019397,2]
[373246280,1752922266701,-480.0,0.00019397,2]
[373246281,1752922266738,-480.0,0.00019397,2]
[373246282,1752922266761,-500.0,0.00019505,2]
[373246283,1752922266771,-587.04,0.00019505,2]
[373246284,1752922266780,-500.0,0.00019505,2]
[373246285,1752922266790,-2970.85,0.00019505,2]
[373246286,1752922266807,-480.0,0.00019506,2]
[373246287,1752922266823,-480.0,0.00019506,2]
[373246288,1752922266834,-480.0,0.00019506,2]
[373246289,1752922266847,-480.0,0.00019506,2]
[373246290,1752922266869,-480.0,0.00019506,2]
[373246291,1752922266887,-480.0,0.00019506,2]
[373246292,1752922266897,-422.66,0.00019506,2]
[373246293,1752922266906,-480.0,0.00019506,2]
[373246294,1752922266916,-221.29173886,0.00019506,2]
[373246295,1752922266925,-480.0,0.00019506,2]
[373246296,1752922266934,-480.0,0.00019506,2]
[373246297,1752922266944,-480.0,0.00019506,2]
[373246298,1752922266953,-480.0,0.00019506,2]
[373246299,1752922266963,-480.0,0.00019506,2]
[373246300,1752922266972,-359.97386212,0.00019506,2]
[373246301,1752922266982,-546.15902582,0.00019506,2]
[373246302,1752922266992,-469.36297038,0.00019506,2]
[373246303,1752922267001,-480.0,0.00019506,2]
[373246304,1752922267011,-480.0,0.00019506,2]
[373246305,1752922267020,-480.0,0.00019506,2]
[373246306,1752922267029,-480.0,0.00019506,2]
[373246307,1752922267038,-480.0,0.00019506,2]
[373246308,1752922267048,-440.48053857,0.00019506,2]
[373246309,1752922267058,-539.76739981,0.00019506,2]
[373246310,1752922267068,-480.0,0.00019506,2]
[373246311,1752922267077,-411.41371796,0.00019506,2]
[373246312,1752922267087,-480.0,0.00019506,2]
[373246313,1752922267096,-480.0,0.00019506,2]
[373246314,1752922267105,-400.0,0.00019506,2]
[373246315,1752922267114,-480.0,0.00019506,2]
[373246316,1752922267123,-480.0,0.00019506,2]
[373246317,1752922267132,-480.0,0.00019506,2]
[373246318,1752922267142,-480.0,0.00019506,2]
[373246319,1752922267150,-480.0,0.00019506,2]
[373246320,1752922267160,-480.0,0.00019506,2]
[373246321,1752922267169,-480.0,0.00019506,2]
[373246322,1752922267178,-480.0,0.00019506,2]
[373246323,1752922267188,-443.97,0.00019506,2]
[373246324,1752922267198,-504.94,0.00019506,2]
[373246325,1752922267207,-413.88711786,0.00019506,2]
[373246326,1752922267217,-584.26,0.00019506,2]
[373246327,1752922267226,-480.0,0.00019506,2]
[373246328,1752922267235,-480.0,0.00019506,2]
[373246329,1752922267245,-480.0,0.00019506,2]
[373246330,1752922267255,-480.0,0.00019506,2]
[373246331,1752922267265,-413.97352269,0.00019506,2]
[373246332,1752922267274,-603.58863053,0.00019506,2]
[373246333,1752922267283,-480.0,0.00019506,2]
[373246334,1752922267293,-480.0,0.00019506,2]
[373246335,1752922267305,-480.0,0.00019506,2]
[373246336,1752922267314,-480.0,0.00019506,2]
[373246337,1752922267324,-305.47,0.00019506,2]
[373246338,1752922267333,-480.0,0.00019506,2]
[373246339,1752922267343,-480.0,0.00019506,2]
[373246340,1752922267352,-480.0,0.00019506,2]
[373246341,1752922267362,-409.33231496,0.00019506,2]
[373246342,1752922267372,-480.0,0.00019506,2]
[373246343,1752922267382,-412.18,0.00019506,2]
[373246344,1752922267392,-614.05,0.00019506,2]
[373246345,1752922267402,-480.0,0.00019506,2]
[373246346,1752922267411,-480.0,0.00019506,2]
[373246347,1752922267420,-217.795832,0.00019506,2]
[373246348,1752922267430,-480.0,0.00019506,2]
[373246349,1752922267439,-433.5006371,0.00019506,2]
[373246350,1752922267449,-525.55,0.00019506,2]
[373246351,1752922267459,-433.18002962,0.00019506,2]
[373246352,1752922267468,-273.430536,0.00019506,2]
[373246353,1752922267478,-234.961977,0.00019506,2]
[373246354,1752922267487,-480.0,0.00019506,2]
[373246355,1752922267497,-438.11878192,0.00019506,2]
[373246356,1752922267506,-480.0,0.00019506,2]
[373246357,1752922267516,-480.0,0.00019506,2]
[373246358,1752922267526,-629.83,0.00019506,2]
[373246359,1752922267536,-480.0,0.00019506,2]
[373246360,1752922267545,-540.95,0.00019506,2]
[373246361,1752922267556,-409.21393597,0.00019506,2]
[373246362,1752922267566,-480.0,0.00019506,2]
[373246363,1752922267576,-480.0,0.00019506,2]
[373246364,1752922267586,-401.99355693,0.00019506,2]
[373246365,1752922267595,-480.0,0.00019506,2]
[373246366,1752922267605,-404.900409,0.00019506,2]
[373246367,1752922267614,-400.0,0.00019506,2]
[373246368,1752922267623,-480.0,0.00019506,2]
[373246369,1752922267636,-480.0,0.00019506,2]
[373246370,1752922267645,-480.0,0.00019506,2]
[373246371,1752922267654,-480.0,0.00019506,2]
[373246372,1752922267663,-409.79650554,0.00019506,2]
[373246373,1752922267674,-480.0,0.00019506,2]
[373246374,1752922267684,-480.0,0.00019506,2]
[373246375,1752922267693,-403.86103482,0.00019506,2]
[373246376,1752922267702,-480.0,0.00019506,2]
[373246377,1752922267713,-415.94,0.00019506,2]
[373246378,1752922267724,-607.87,0.00019506,2]
[373246379,1752922267733,-164.93,0.00019506,2]
[373246380,1752922267743,-480.0,0.00019506,2]
[373246381,1752922267752,-480.0,0.00019506,2]
[373246382,1752922267761,-480.0,0.00019506,2]
[373246383,1752922267770,-470.86,0.00019506,2]
[373246384,1752922267779,-237.19876272,0.00019506,2]
[373246385,1752922267789,-480.0,0.00019506,2]
[373246386,1752922267798,-480.0,0.00019506,2]
[373246387,1752922267809,-480.0,0.00019506,2]
[373246388,1752922267819,-480.0,0.00019506,2]
[373246389,1752922267829,-168.25289,0.00019506,2]
[373246390,1752922267839,-480.0,0.00019506,2]
[373246391,1752922267848,-480.0,0.00019506,2]
[373246392,1752922267858,-158.408904,0.00019506,2]
[373246393,1752922267867,-150.812775,0.00019506,2]